fUST/lending_fUST_20250623
["ID","MTS","AMOUNT","RATE_DAILY","PERIOD"]
[367025273,1750621839643,-185.27609533,0.000248,4]
[367025274,1750621839652,-185.27609533,0.000248,4]
[367025275,1750621839661,-185.27609533,0.000248,4]
[367025276,1750621839671,-185.27609533,0.000248,4]
[367025277,1750621839680,-185.27609533,0.000248,4]
[367025278,1750621839690,-185.27609533,0.000248,4]
[367025279,1750621839699,-185.27609533,0.000248,4]
[367025280,1750621839708,-185.27609533,0.000248,4]
[367025281,1750621839718,-185.27,0.000248,4]
[367025282,1750621839727,-432.31088911,0.000248,4]
[367025283,1750621839737,-432.31088911,0.000248,4]
[367025284,1750621839746,-432.31088911,0.000248,4]
[367025285,1750621839756,-432.31088911,0.000248,4]
[367025286,1750621839766,-432.31088911,0.000248,4]
[367025287,1750621839776,-432.31088911,0.000248,4]
[367025288,1750621839786,-432.31088911,0.000248,4]
[367025289,1750621839796,-432.31088911,0.000248,4]
[367025290,1750621839806,-432.31088911,0.000248,4]
[367025291,1750621839815,-432.31088911,0.000248,4]
[367025292,1750621839828,-432.31088911,0.000248,4]
[367025293,1750621839837,-432.31088911,0.000248,4]
[367025294,1750621839847,-432.31088911,0.000248,4]
[367025295,1750621839856,-233.03,0.000248,4]
[367025296,1750621839866,-181.24564322,0.000248,4]
[367025297,1750621839875,-181.24564322,0.000248,4]
[367025298,1750621839885,-262.0,0.00024808,2]
[367025299,1750621839895,-270.676087,0.0002481,2]
[367025300,1750621839904,-432.31088911,0.00024811,4]
[367025301,1750621839913,-500.0,0.00024815,2]
[367025302,1750621839923,-262.0,0.00024815,2]
[367025304,1750621839932,-3863.33931976,0.00024831,12]
[367025306,1750621839941,-151.0,0.00024832,6]
[367025308,1750621839951,-4282.76139734,0.00024839,2]
[367025310,1750621839959,-500.0,0.00024873,2]
[367025313,1750621839968,-500.0,0.00024873,2]
[367025317,1750621839978,-500.0,0.00024873,2]
[367025321,1750621839986,-500.0,0.00024873,2]
[367025323,1750621839996,-324.10451832,0.00024873,2]
[367025326,1750621840005,-153.07575854,0.00024873,2]
[367025328,1750621840015,-500.0,0.00024873,2]
[367025330,1750621840023,-500.0,0.00024873,2]
[367025332,1750621840033,-500.0,0.00024873,2]
[367025334,1750621840042,-503.18969141,0.00024873,2]
[367025336,1750621840051,-500.0,0.00024873,2]
[367025338,1750621840061,-500.0,0.00024873,2]
[367025359,1750621840260,-500.0,0.00024873,2]
[367025360,1750621840270,-500.0,0.00024873,2]
[367025361,1750621840279,-500.0,0.00024873,2]
[367025362,1750621840288,-600.0,0.00024873,2]
[367025363,1750621840298,-500.0,0.00024881,2]
[367025364,1750621840307,-500.0,0.00024882,2]
[367025365,1750621840316,-409.312054,0.000249,7]
[367025366,1750621840329,-409.312054,0.000249,7]
[367025367,1750621840338,-503.87752,0.000249,7]
[367025368,1750621840347,-503.87752,0.000249,7]
[367025369,1750621840356,-151.0,0.000249,7]
[367025370,1750621840366,-151.0,0.000249,7]
[367025371,1750621840375,-200.0,0.000249,10]
[367025372,1750621840384,-200.0,0.000249,10]
[367025373,1750621840393,-200.0,0.000249,10]
[367025374,1750621840402,-200.0,0.000249,10]
[367025375,1750621840411,-200.0,0.000249,10]
[367025376,1750621840420,-200.0,0.000249,10]
[367025377,1750621840429,-200.0,0.000249,10]
[367025378,1750621840438,-200.0,0.000249,10]
[367025379,1750621840448,-200.0,0.000249,10]
[367025380,1750621840457,-200.0,0.000249,10]
[367025381,1750621840467,-200.0,0.000249,10]
[367025382,1750621840476,-200.0,0.000249,10]
[367025383,1750621840484,-200.0,0.000249,10]
[367025384,1750621840494,-200.0,0.000249,10]
[367025385,1750621840504,-200.0,0.000249,10]
[367025386,1750621840513,-200.0,0.000249,10]
[367025387,1750621840526,-200.0,0.000249,10]
[367025388,1750621840535,-200.0,0.000249,10]
[367025389,1750621840544,-200.0,0.000249,10]
[367025390,1750621840554,-200.0,0.000249,10]
[367025391,1750621840563,-200.0,0.000249,10]
[367025392,1750621840575,-223.899499,0.000249,10]
[367025393,1750621840584,-583246.73087918,0.000249,2]
[367025394,1750621840602,-1668.20312407,0.000249,2]
[367025395,1750621840615,-280.44,0.000249,2]
[367025397,1750621840714,-412.28415056,0.000249,2]
[367025398,1750621840726,-29569.90603071,0.000249,2]
[367025399,1750621841040,-2159.0,0.00023,3]
[367025400,1750621841050,-230.14598372,0.000245,3]
[367025401,1750621841059,-230.14598372,0.000246,7]
[367025402,1750621841069,-2659.8018466,0.000249,2]
[367025403,1750621841080,-969.74033646,0.000249,2]
[367025408,1750621843536,-230.14598372,0.00024003,10]
[367025409,1750621843546,-45990.4683799,0.000249,2]
[367025410,1750621843557,-4115.50401206,0.000249,2]
[367025414,1750621845992,-12551.52821599,0.000245,3]
[367025415,1750621846003,-3168.21563223,0.000249,2]
[367025416,1750621846016,-2226.9982323,0.000249,2]
[367025417,1750621846028,-389.6018726,0.000249,2]
[367025419,1750622046407,214.8212617,0.00013699,2]
[367025421,1750622750187,-4789.99451916,0.00020408,2]
[367025422,1750622750209,-335.7896087,0.00020822,2]
[367025423,1750622750230,-167.430024,0.00021065,2]
[367025424,1750622750252,-1200.0,0.00021493,2]
[367025425,1750622750273,-4456.30366699,0.00021494,2]
[367025426,1750622750295,-300.0,0.00021525,2]
[367025427,1750622750334,-300.0,0.00021525,2]
[367025428,1750622750360,-300.0,0.00021525,2]
[367025429,1750622750381,-216.540869,0.00021526,2]
[367025430,1750622750401,-1000.0,0.00021855,2]
[367025431,1750622750423,-208.59738312,0.00021855,2]
[367025432,1750622750445,-800.0,0.0002186,2]
[367025433,1750622750468,-800.0,0.00021863,2]
[367025434,1750622750498,-2318.00359203,0.000219,6]
[367025435,1750622750526,-2318.00359185,0.00022072,6]
[367025436,1750622750548,-222.99411365,0.00022201,2]
[367025437,1750622750571,-207.4,0.0002222,2]
[367025438,1750622750594,-500.0,0.0002222,2]
[367025439,1750622750617,-500.0,0.0002222,2]
[367025440,1750622750641,-500.0,0.0002222,2]
[367025441,1750622750663,-500.0,0.0002222,2]
[367025442,1750622750686,-500.0,0.0002222,2]
[367025443,1750622750708,-500.0,0.0002222,2]
[367025444,1750622750730,-500.0,0.0002222,2]
[367025445,1750622750756,-500.0,0.0002222,2]
[367025446,1750622750777,-500.0,0.0002222,2]
[367025447,1750622750801,-500.0,0.0002222,2]
[367025448,1750622750823,-300.0,0.0002224,2]
[367025449,1750622750846,-800.0,0.00022241,2]
[367025450,1750622750877,-2318.00359185,0.00022245,6]
[367025451,1750622750898,-800.0,0.0002233,2]
[367025452,1750622750920,-150.81829453,0.00022366,2]
[367025453,1750622750950,-2318.00359185,0.00022417,7]
[367025454,1750622750971,-213.0,0.00022466,3]
[367025455,1750622750999,-2318.00359185,0.0002259,7]
[367025456,1750622751022,-3000.0,0.000227,2]
[367025457,1750622751044,-3000.0,0.0002271,2]
[367025458,1750622751070,-3000.0,0.0002272,2]
[367025459,1750622751092,-800.0,0.00022729,2]
[367025460,1750622751115,-3000.0,0.0002273,2]
[367025461,1750622751136,-3000.0,0.0002274,2]
[367025462,1750622751158,-494.233,0.0002274,2]
[367025463,1750622751178,-500.0,0.00022749,2]
[367025464,1750622751204,-500.0,0.00022749,2]
[367025465,1750622751227,-500.0,0.00022749,2]
[367025466,1750622751251,-500.0,0.00022749,2]
[367025467,1750622751273,-500.0,0.00022749,2]
[367025468,1750622751297,-500.0,0.00022749,2]
[367025469,1750622751322,-500.0,0.00022749,2]
[367025470,1750622751346,-422.61142869,0.00022749,2]
[367025471,1750622751370,-3000.0,0.0002275,2]
[367025472,1750622751393,-3000.0,0.0002276,2]
[367025473,1750622751414,-500.0,0.0002276,2]
[367025474,1750622751442,-2318.00359185,0.00022762,7]
[367025475,1750622751464,-3000.0,0.0002277,2]
[367025476,1750622751486,-3000.0,0.0002278,2]
[367025477,1750622751508,-3000.0,0.0002279,2]
[367025478,1750622751529,-394.86425101,0.000228,2]
[367025479,1750622751551,-3000.0,0.000228,2]
[367025480,1750622751574,-3000.0,0.0002281,2]
[367025481,1750622751598,-3543.529538,0.0002282,2]
[367025482,1750622751621,-399.34030724,0.0002285,2]
[367025483,1750622751643,-160.0,0.00022887,2]
[367025484,1750622751664,-160.0,0.00022887,2]
[367025485,1750622751687,-12551.52821599,0.00022887,2]
[367025486,1750622751710,-846.39664074,0.00022887,2]
[367025487,1750622751732,-230.14598372,0.00022887,2]
[367025488,1750622751758,-213.59462818,0.00022887,2]
[367025489,1750622751781,-160.0,0.00022887,2]
[367025490,1750622751803,-160.0,0.00022887,2]
[367025491,1750622751824,-836.56272071,0.00022887,2]
[367025492,1750622751850,-425.01221603,0.00022887,2]
[367025493,1750622751872,-500.0,0.00022901,2]
[367025494,1750622751895,-237.87,0.00022901,2]
[367025495,1750622751925,-2318.00359185,0.00022934,8]
[367025496,1750622751947,-160.0,0.00023023,2]
[367025497,1750622751969,-468.21461458,0.00023081,2]
[367025498,1750622751997,-2318.00359185,0.00023107,8]
[367025499,1750622752018,-800.0,0.00023111,2]
[367025500,1750622752041,-3439.0,0.00023161,2]
[367025501,1750622752063,-3439.0,0.00023169,2]
[367025502,1750622752085,-150.81829453,0.00023172,2]
[367025503,1750622752107,-800.0,0.00023262,2]
[367025504,1750622752136,-2318.00359185,0.00023279,8]
[367025505,1750622752157,-1400.0,0.00023296,2]
[367025506,1750622752179,-500.0,0.000233,2]
[367025507,1750622752201,-1400.0,0.00023316,2]
[367025508,1750622752223,-500.0,0.0002332,2]
[367025509,1750622752244,-500.0,0.0002332,2]
[367025510,1750622752265,-500.0,0.0002332,2]
[367025511,1750622752286,-1400.0,0.00023345,2]
[367025512,1750622752308,-1376.44,0.000234,7]
[367025513,1750622752329,-420.0,0.00023402,2]
[367025514,1750622752350,-420.0,0.00023402,2]
[367025515,1750622752372,-500.0,0.00023449,2]
[367025516,1750622752400,-2318.00359185,0.00023452,9]
[367025517,1750622752422,-1680.0,0.00023478,2]
[367025518,1750622752443,-500.0,0.0002348,2]
[367025519,1750622752464,-800.0,0.00023505,2]
[367025520,1750622752484,-500.0,0.0002355,2]
[367025521,1750622752506,-1400.0,0.00023561,2]
[367025522,1750622752527,-215.0738,0.00023589,2]
[367025523,1750622752549,-1400.0,0.000236,2]
[367025524,1750622752571,-500.0,0.00023606,2]
[367025525,1750622752592,-500.0,0.00023622,2]
[367025526,1750622752621,-2318.00359185,0.00023624,9]
[367025527,1750622752642,-500.0,0.00023631,2]
[367025528,1750622752664,-1400.0,0.00023646,2]
[367025529,1750622752686,-1400.0,0.00023678,2]
[367025530,1750622752709,-3439.0,0.00023692,2]
[367025531,1750622752730,-442.81653025,0.00023707,2]
[367025532,1750622752756,-3439.0,0.00023727,2]
[367025533,1750622752777,-500.0,0.0002376,2]
[367025534,1750622752807,-2318.00359185,0.00023797,9]
[367025535,1750622752829,-800.0,0.00023819,2]
[367025536,1750622752852,-518.8,0.00023858,3]
[367025537,1750622752872,-442.81653025,0.00023862,2]
[367025538,1750622752894,-172.92,0.00023863,3]
[367025539,1750622752916,-500.0,0.00023868,2]
[367025540,1750622752937,-1000.0,0.00023868,2]
[367025541,1750622752958,-1000.0,0.00023868,2]
[367025542,1750622752979,-345.85,0.00023873,3]
[367025543,1750622753001,-691.7,0.00023883,3]
[367025544,1750622753022,-176.815034,0.00023884,2]
[367025545,1750622753045,-500.0,0.00023889,2]
[367025546,1750622753073,-2318.00359185,0.00023969,10]
[367025547,1750622753094,-500.0,0.00023973,2]
[367025548,1750622753116,-500.0,0.00023973,2]
[367025549,1750622753138,-500.0,0.00023973,2]
[367025550,1750622753159,-500.0,0.00023973,2]
[367025551,1750622753180,-500.0,0.00023973,2]
[367025552,1750622753202,-500.0,0.00023973,2]
[367025553,1750622753223,-500.0,0.00023973,2]
[367025554,1750622753244,-464.8053397,0.00023973,2]
[367025555,1750622757099,-256.8,0.00022809,5]
[367025556,1750622757127,-256.8,0.00023148,5]
[367025557,1750622757150,-256.8,0.00023488,5]
[367025558,1750622757170,-256.8,0.00023827,5]
[367025559,1750622757190,-35.1946603,0.00023973,2]
[367025560,1750622757211,-222.71841083,0.00023973,2]
[367025561,1750622757231,-500.0,0.00023973,2]
[367025562,1750622757251,-500.0,0.00023973,2]
[367025563,1750622757272,-150.81829453,0.00023979,2]
[367025564,1750622757293,-500.0,0.00023989,7]
[367025565,1750622757312,-439.84392854,0.00023989,2]
[367025566,1750622757334,-500.0,0.00023989,2]
[367025567,1750622757360,-500.0,0.00023989,2]
[367025568,1750622757381,-500.0,0.00023989,2]
[367025569,1750622757403,-500.0,0.00023989,2]
[367025570,1750622757424,-645.44624741,0.00023989,2]
[367025571,1750622757446,-500.0,0.00023989,2]
[367025572,1750622757468,-500.0,0.00023989,2]
[367025573,1750622757490,-500.0,0.00023989,2]
[367025574,1750622757512,-500.0,0.00023989,2]
[367025575,1750622757533,-500.0,0.00023989,2]
[367025576,1750622757555,-500.0,0.00023989,2]
[367025577,1750622757576,-500.0,0.00023989,2]
[367025578,1750622757596,-500.0,0.00023989,2]
[367025579,1750622757622,-500.0,0.00023989,2]
[367025580,1750622757643,-500.0,0.00023989,2]
[367025581,1750622757666,-500.0,0.00023989,2]
[367025582,1750622757689,-500.0,0.00023989,2]
[367025583,1750622757711,-301.81237319,0.00023989,2]
[367025584,1750622757734,-500.0,0.00023989,2]
[367025585,1750622757759,-500.0,0.00023989,2]
[367025586,1750622757781,-332.2217907,0.00023989,2]
[367025587,1750622757803,-500.0,0.00023996,2]
[367025588,1750622757823,-160.0,0.00024003,10]
[367025589,1750622757846,-12551.52821599,0.00024003,10]
[367025590,1750622757870,-230.14598372,0.00024003,10]
[367025591,1750622757890,-160.0,0.00024003,10]
[367025592,1750622757912,-524.02598587,0.00024003,10]
[367025593,1750622757934,-836.56272071,0.00024003,10]
[367025594,1750622757955,-846.39664074,0.00024003,10]
[367025595,1750622757976,-213.59462818,0.00024003,10]
[367025596,1750622757999,-425.01221603,0.00024003,10]
[367025597,1750622758019,-1400.0,0.00024005,2]
[367025598,1750622758039,-800.0,0.00024022,2]
[367025599,1750622758060,-500.0,0.00024024,2]
[367025600,1750622758080,-500.0,0.00024028,2]
[367025601,1750622758100,-500.0,0.00024096,2]
[367025602,1750622758126,-1400.0,0.00024109,2]
[367025603,1750622758154,-2318.00359185,0.00024141,10]
[367025604,1750622758174,-420.0,0.00024162,2]
[367025605,1750622758194,-256.8,0.00024166,6]
[367025606,1750622758214,-500.0,0.00024177,2]
[367025607,1750622758234,-442.81653025,0.00024192,2]
[367025608,1750622758254,-800.0,0.0002422,2]
[367025609,1750622758480,-1400.0,0.00024264,2]
[367025610,1750622758502,-237.87,0.0002427,2]
[367025611,1750622758521,-515.8693026,0.00024275,2]
[367025612,1750622758541,-1376.44,0.000243,7]
[367025613,1750622758562,-425.01221603,0.000243,7]
[367025614,1750622758588,-2318.00359185,0.00024314,10]
[367025615,1750622758610,-264.32452911,0.00024327,2]
[367025616,1750622758630,-500.0,0.00024331,2]
[367025617,1750622758649,-500.0,0.00024333,2]
[367025618,1750622758669,-1400.0,0.00024336,2]
[367025619,1750622758688,-150.0,0.00024336,2]
[367025620,1750622758708,-965.0,0.00024336,2]
[367025621,1750622758728,-2161.0,0.00024336,2]
[367025622,1750622758752,-654.0,0.00024336,2]
[367025623,1750622758772,-406.0,0.00024336,2]
[367025624,1750622758792,-406.0,0.00024336,2]
[367025625,1750622758812,-500.0,0.00024368,2]
[367025626,1750622758834,-500.0,0.00024414,2]
[367025627,1750622758853,-1377.46271169,0.00024416,2]
[367025628,1750622758876,-500.0,0.00024416,2]
[367025629,1750622758896,-500.0,0.00024421,2]
[367025630,1750622758917,-500.0,0.00024472,2]
[367025631,1750622758936,-500.0,0.00024481,2]
[367025632,1750622758957,-500.0,0.00024486,2]
[367025633,1750622758984,-2318.00359185,0.00024486,11]
[367025634,1750622759004,-2431.4,0.000245,2]
[367025635,1750622759024,-7945.12,0.000245,7]
[367025636,1750622759045,-213.59462818,0.000245,7]
[367025637,1750622759066,-256.8,0.00024506,6]
[367025638,1750622759088,-3439.0,0.00024513,2]
[367025639,1750622759113,-1400.0,0.00024513,2]
[367025640,1750622759133,-1081.9702967,0.00024521,2]
[367025641,1750622759157,-328.80530245,0.00024521,2]
[367025642,1750622759180,-501.64921607,0.00024521,2]
[367025643,1750622759201,-500.0,0.00024521,2]
[367025644,1750622759222,-1000.0,0.00024521,2]
[367025645,1750622759244,-1000.0,0.00024521,2]
[367025646,1750622759265,-1000.0,0.00024521,2]
[367025647,1750622759286,-1000.0,0.00024521,2]
[367025648,1750622759308,-500.0,0.00024537,8]
[367025649,1750622759331,-500.0,0.00024544,2]
[367025650,1750622759352,-500.0,0.00024558,2]
[367025651,1750622759374,-500.0,0.00024591,2]
[367025652,1750622759394,-442.81653028,0.00024595,2]
[367025653,1750622759415,-160.0,0.000246,7]
[367025654,1750622759435,-160.0,0.000246,7]
[367025655,1750622759456,-12551.52821599,0.000246,7]
[367025656,1750622759478,-230.14598372,0.000246,7]
[367025657,1750622759498,-160.0,0.000246,7]
[367025658,1750622759519,-836.56272071,0.000246,7]
[367025659,1750622759539,-846.39664074,0.000246,7]
[367025660,1750622759560,-1400.0,0.00024602,2]
[367025661,1750622759580,-500.0,0.00024632,2]
[367025662,1750622759600,-200.0,0.00024658,15]
[367025663,1750622759623,-380.0,0.00024658,2]
[367025664,1750622759644,-1000.0,0.00024658,2]
[367025665,1750622759664,-1000.0,0.00024658,2]
[367025666,1750622759686,-398.8376744,0.00024658,2]
[367025667,1750622759706,-1000.0,0.00024658,2]
[367025668,1750622759734,-2318.00359185,0.00024659,11]
[367025669,1750622759758,-500.0,0.00024674,2]
[367025670,1750622759779,-1400.0,0.00024755,2]
[367025671,1750622759801,-500.0,0.00024756,2]
[367025672,1750622759822,-1400.0,0.00024761,2]
[367025673,1750622759844,-150.81829453,0.00024785,2]
[367025674,1750622759867,-4304.25585234,0.000248,3]
[367025675,1750622759889,-54278.314288,0.000248,2]
[367025676,1750622759911,-6424.14209601,0.00024802,2]
[367025677,1750622759939,-2318.00359185,0.00024831,12]
[367025678,1750622759963,-3439.0,0.00024836,2]
[367025679,1750622759985,-800.0,0.00024843,2]
[367025680,1750622760006,-256.8,0.00024845,6]
[367025681,1750622760028,-500.0,0.00024853,2]
[367025682,1750622760049,-500.0,0.00024873,2]
[367025683,1750622760069,-500.0,0.00024873,2]
[367025684,1750622760090,-500.0,0.00024873,2]
[367025685,1750622760113,-500.99072211,0.00024873,2]
[367025686,1750622760134,-500.0,0.00024873,2]
[367025687,1750622760154,-500.0,0.00024873,2]
[367025688,1750622760175,-500.0,0.00024873,2]
[367025689,1750622760195,-198.15109944,0.00024873,2]
[367025690,1750622760217,-500.0,0.00024873,2]
[367025691,1750622760237,-500.0,0.00024873,2]
[367025692,1750622760258,-500.0,0.00024873,2]
[367025693,1750622760278,-500.0,0.00024873,2]
[367025694,1750622760299,-500.0,0.00024873,2]
[367025695,1750622760319,-500.0,0.00024873,2]
[367025696,1750622760339,-500.0,0.00024873,2]
[367025697,1750622760361,-500.0,0.00024873,2]
[367025698,1750622760382,-500.0,0.00024873,2]
[367025699,1750622760402,-500.0,0.00024873,2]
[367025700,1750622760422,-500.0,0.00024873,2]
[367025701,1750622760442,-500.0,0.00024873,2]
[367025702,1750622760463,-560.35633233,0.00024873,2]
[367025703,1750622760485,-500.0,0.00024873,2]
[367025704,1750622760506,-500.0,0.00024873,2]
[367025705,1750622760526,-503.18969141,0.00024873,2]
[367025706,1750622760547,-500.0,0.00024873,2]
[367025707,1750622760568,-500.0,0.00024873,2]
[367025708,1750622760590,-600.0,0.00024873,2]
[367025709,1750622760615,-500.0,0.00024873,2]
[367025710,1750622760637,-500.0,0.00024873,2]
[367025711,1750622760657,-500.0,0.00024873,2]
[367025712,1750622760678,-500.0,0.00024873,2]
[367025713,1750622760699,-500.0,0.00024873,2]
[367025714,1750622760721,-500.0,0.00024873,2]
[367025715,1750622760742,-500.0,0.00024873,2]
[367025716,1750622760775,-581.75668213,0.00024873,2]
[367025717,1750622760802,-153.07575854,0.00024873,2]
[367025718,1750622760823,-500.0,0.00024873,2]
[367025719,1750622760843,-500.0,0.00024873,2]
[367025720,1750622760867,-500.0,0.00024873,2]
[367025721,1750622760888,-500.0,0.00024873,2]
[367025722,1750622760909,-500.0,0.00024873,2]
[367025723,1750622760931,-500.0,0.00024873,2]
[367025724,1750622760952,-151.0,0.00024882,2]
[367025725,1750622760973,-151.0,0.00024882,2]
[367025726,1750622760994,-209.3546536,0.00024882,2]
[367025727,1750622761015,-1618.0,0.00024882,2]
[367025728,1750622761036,-151.0,0.00024882,2]
[367025729,1750622761057,-500.0,0.00024882,2]
[367025730,1750622761077,-151.0,0.00024882,2]
[367025731,1750622761097,-151.0,0.00024882,2]
[367025732,1750622761125,-151.0,0.00024882,2]
[367025733,1750622761145,-151.62342471,0.00024882,2]
[367025734,1750622761165,-151.0,0.00024882,2]
[367025735,1750622761185,-500.0,0.00024882,2]
[367025736,1750622761206,-151.0,0.00024882,2]
[367025737,1750622761227,-500.0,0.00024882,2]
[367025738,1750622761247,-1400.0,0.00024897,2]
[367025739,1750622761267,-19628.42201736,0.000249,2]
[367025740,1750622761289,-13692.76347088,0.000249,2]
[367025741,1750622761310,-9562.69373428,0.000249,2]
[367025742,1750622761331,-223.899499,0.000249,10]
[367025743,1750622761351,-151.0,0.000249,2]
[367025744,1750622761378,-65930.82676642,0.000249,2]
[367025745,1750622833087,-4456.30366699,0.00021494,2]
[367025746,1750622833108,-3590.18499516,0.00021899,2]
[367025747,1750622833135,-577.42023071,0.00021899,2]
[367025748,1750622834122,-188.402491,0.00020849,2]
[367025749,1750622834143,-622.38929329,0.00021899,2]
[367025750,1750622834163,-209.13074346,0.0002212,2]
[367025751,1750622834187,-500.0,0.00022749,2]
[367025752,1750622834209,-593.57686459,0.000228,2]
[367025753,1750622834230,-300.0,0.00023022,2]
[367025754,1750622834251,-836.56272071,0.00023023,2]
[367025755,1750622834272,-425.01221603,0.00023023,2]
[367025756,1750622834293,-160.0,0.00023023,2]
[367025757,1750622834313,-292.74384882,0.00023023,2]
[367025758,1750622836085,-349.79768111,0.00023023,2]
[367025759,1750622841102,-11908.98668606,0.00023023,2]
[367025760,1750622841123,-160.0,0.00023023,2]
[367025761,1750622841144,-846.39664074,0.00023023,2]
[367025762,1750622841170,-230.14598372,0.00023023,2]
[367025763,1750622841195,-213.59462818,0.00023023,2]
[367025764,1750622841217,-160.0,0.00023023,2]
[367025765,1750622841239,-2131.2766115,0.00023671,2]
[367025766,1750622841266,-2214.98121021,0.000239,10]
[367025767,1750622841286,-500.0,0.00023973,2]
[367025768,1750622841307,-300.0,0.00023988,2]
[367025769,1750622841327,-500.0,0.00023988,2]
[367025770,1750622841348,-500.0,0.00023989,2]
[367025771,1750622841370,-500.0,0.00023989,2]
[367025772,1750622841391,-500.0,0.00023989,2]
[367025773,1750622841415,-500.0,0.00023989,2]
[367025774,1750622841436,-500.0,0.00023989,2]
[367025775,1750622841458,-500.0,0.00023989,2]
[367025776,1750622841481,-422.61142869,0.00023989,2]
[367025777,1750622841502,-160.0,0.00024003,10]
[367025778,1750622841524,-12551.52821599,0.00024003,10]
[367025779,1750622841551,-2214.98120999,0.00024003,10]
[367025780,1750622841575,-2214.98120999,0.00024107,10]
[367025781,1750622841600,-2214.98120999,0.0002421,10]
[367025782,1750622841621,-160.0,0.000243,7]
[367025783,1750622841644,-12551.52821599,0.000243,7]
[367025784,1750622841665,-160.0,0.000243,7]
[367025785,1750622841691,-2214.98120999,0.00024314,10]
[367025786,1750622841715,-209.13074346,0.000244,2]
[367025787,1750622841746,-2214.98120999,0.00024417,11]
[367025788,1750622841769,-442.81653026,0.00024501,2]
[367025789,1750622841798,-2214.98120999,0.00024521,11]
[367025790,1750622841822,-500.0,0.00024536,2]
[367025791,1750622841848,-2214.98120999,0.00024624,11]
[367025792,1750622841875,-2214.98120999,0.00024728,11]
[367025793,1750622841897,-4304.25585234,0.000248,3]
[367025794,1750622841922,-2214.98120999,0.00024831,12]
[367025795,1750622841946,-500.0,0.00024873,2]
[367025796,1750622841967,-500.0,0.00024873,2]
[367025797,1750622841987,-500.0,0.00024873,2]
[367025798,1750622842009,-222.71841083,0.00024873,2]
[367025799,1750622842030,-500.0,0.00024873,2]
[367025800,1750622842051,-500.0,0.00024873,2]
[367025801,1750622842073,-885.0,0.00024882,2]
[367025802,1750622842094,-152.04280326,0.00024882,2]
[367025803,1750622842115,-151.0,0.00024882,2]
[367025804,1750622842135,-151.0,0.00024882,2]
[367025805,1750622842155,-151.0,0.00024882,2]
[367025806,1750622842441,-151.0,0.00024882,2]
[367025807,1750622842464,-500.0,0.00024882,2]
[367025808,1750622842486,-500.0,0.00024882,2]
[367025809,1750622842506,-151.0,0.00024882,2]
[367025810,1750622842528,-151.32566504,0.00024882,2]
[367025811,1750622842549,-151.0,0.00024882,2]
[367025812,1750622842571,-151.0,0.00024882,2]
[367025813,1750622842592,-691.7,0.0002489,3]
[367025814,1750622842614,-691.71,0.0002489,3]
[367025815,1750622842637,-500.0,0.00024899,2]
[367025816,1750622842659,-500.0,0.00024899,2]
[367025817,1750622842681,-272.06571924,0.00024899,2]
[367025818,1750622842702,-500.0,0.00024899,2]
[367025819,1750622842724,-500.0,0.00024899,2]
[367025820,1750622842747,-645.44624741,0.00024899,2]
[367025821,1750622842770,-500.0,0.00024899,2]
[367025822,1750622842796,-500.0,0.00024899,2]
[367025823,1750622842818,-500.0,0.00024899,2]